Cogmind - Beta 10.2 *** ADVENTURER MODE // 2021.02.11 @ 18:25:04 Player: CH1040-F0RM Result: Self-destructed Performance ------------- Evolutions (1) 500 Regions Visited (3) 600 Robots Destroyed (103) 515 Value Destroyed (2059) 2059 Prototype IDs (3) 60 Alien Tech Used (0) 0 Bonus (166) 166 TOTAL SCORE: 3900 Bonus ------- High Alert Combat Kills 83 Follower Combat Kills 83 Cogmind --------- Core Integrity 162/400 Matter 177/300 Energy 465/465 System Corruption 2% Temperature Cool (0) Movement Walking (120) Location -9/Storage Parts ------- > --- POWER (1) -------- Improved Ion Engine > --- PROPULSION (3) --- Aluminum Leg Carbon-fiber Leg Carbon-fiber Leg > --- UTILITY (2) ------ Medium Battery > --- WEAPON (3) ------- Beamcaster Mini Assault Cannon Mini Grenade Launcher > --- INVENTORY (4) ---- Improved Flight Unit Beam Rifle Peak State ------------ > --- POWER ------------ Improved Ion Engine > --- PROPULSION ------- Improved Flight Unit Improved Flight Unit Improved Flight Unit > --- UTILITY ---------- Medium Storage Unit Weight Redist. System > --- WEAPON ----------- Heavy Assault Rifle Improved Assault Rifle Mini Assault Cannon > --- INVENTORY -------- Light Ion Engine Aluminum Leg Aluminum Leg Improved Flight Unit Medium Storage Unit Mini Grenade Launcher Mini Grenade Launcher Mini Grenade Launcher [Rating: 25] Favorites ----------- Power Ion Engine Engine Ion Engine Propulsion Armored Treads Treads Armored Treads Leg Aluminum Leg Wheel Wheel Flight Unit Improved Flight Unit Utility Small Storage Unit Device Weight Redist. System Storage Small Storage Unit Protection Core Shielding Weapon Assault Rifle Energy Gun EM Pulse Gun Ballistic Gun Assault Rifle Ballistic Cannon Mini Assault Cannon Launcher Grenade Launcher Build | -11 -10 -9 -9 ------- Run | Scr Mat Mat Sto Slots Evolved 2 | . . 2 . Power . | . . . . Propulsion 1 | . . 1 . Utility . | . . . . Weapon 1 | . . 1 . Parts Attached 55 | 10 6 17 22 Power 8 | 1 1 3 3 Engine 8 | 1 1 3 3 Core . | . . . . Reactor . | . . . . Propulsion 19 | 3 3 7 6 Treads 5 | 2 . 3 . Leg 10 | . 3 4 3 Wheel 1 | 1 . . . Hover . | . . . . Flight 3 | . . . 3 Utility 9 | 1 1 2 5 Device 2 | . . . 2 Storage 6 | 1 . 2 3 Processor . | . . . . Hackware . | . . . . Protection 1 | . 1 . . Artifact . | . . . . Weapon 19 | 5 1 5 8 Energy Gun 3 | 2 . . 1 Energy Cannon . | . . . . Ballistic Gun 11 | 3 1 3 4 Ballistic Cannon 1 | . . . 1 Launcher 4 | . . 2 2 Special Weapon . | . . . . Impact Weapon . | . . . . Slashing Weapon . | . . . . Piercing Weapon . | . . . . Special Melee Weapon . | . . . . Unidentified Prototypes 3 | . . . 3 Parts Lost 5 | . . . 5 Power . | . . . . Propulsion 2 | . . . 2 Utility . | . . . . Weapon 3 | . . . 3 Highest Loss Streak 3 | . . . 3 Average Slot Usage (%) 93 | . 87 95 95 Engine 11 | . 14 10 11 Treads 16 | . . 18 22 Leg 10 | . 28 14 1 Flight 4 | . . . 8 Device 1 | . . . 2 Storage 13 | . 14 11 13 Protection 6 | . 6 11 4 Energy Gun 2 | . 8 . . Ballistic Gun 21 | . 14 23 24 Ballistic Cannon 2 | . . . 5 Launcher 2 | . . 6 1 Naked Turns . | . . . . Heaviest Build 27 | 13 14 16 27 Greatest Support 60 | 20 20 60 60 Greatest Overweight (x) 2 | 1 . 1 2 Average Overweight (x) . | . . . . Largest Inventory Capacity 10 | 6 6 6 10 Average Capacity 6 | 5 6 5 7 Most Carried 10 | 6 6 6 10 Average Carried 5 | 4 5 5 6 Final Capacity 6 | 6 6 6 4 Final Carried 6 | 6 5 6 2 Class Distribution -------------------- 42% | Mutant 30% | Tank 12% | Gunner 11% | Sprinter Dominant Class ---------------- Mutant | -10/Materials Mutant | -9/Materials Tank | -9/Storage Resources | -11 -10 -9 -9 ----------- Run | Scr Mat Mat Sto Matter Collected 2157 | 235 184 529 1209 Remotely . | . . . . Salvage Created 3549 | . 270 749 2530 Parts 225 | . 22 56 147 Haulers Intercepted 3 | . . . 3 Recyclers Shooed 6 | . . 1 5 Parts Field Recycled . | . . . . Retrieved Matter . | . . . . Parts Self-Destructed . | . . . . Prevented . | . . . . Kills | -11 -10 -9 -9 ------- Run | Scr Mat Mat Sto Combat Hostiles Destroyed 57 | . 10 12 35 Guns 42 | . 10 9 23 Cannons 7 | . . . 7 AOE 8 | . . 3 5 Classes Destroyed 10 | . 3 4 3 Worker 11 | . . 3 8 Builder 11 | . . 2 9 Hauler 3 | . . . 3 Recycler 14 | . . 4 10 Mechanic 2 | . . . 2 Watcher 5 | . 1 3 1 Swarmer 14 | . 7 4 3 Grunt 32 | . 3 7 22 Duelist 1 | . . . 1 Sentry 10 | . . 1 9 Best Kill Streak 10 | . 3 9 10 Combat Bots Only 8 | . 3 5 8 Max Kills in Single Turn 2 | . 1 2 2 Gunslinging . | . . . . Exploded 1 | . . 1 1 Melee . | . . . . Uniques/NPCs Destroyed . | . . . . Combat | -11 -10 -9 -9 -------- Run | Scr Mat Mat Sto Damage Taken 1870 | . 196 357 1317 Core 271 | . 33 43 195 Absorbed by Shields . | . . . . Core Remaining (%) 93 | 100 86 . . Volleys Fired 191 | 3 23 50 115 Largest 3 | 2 2 3 3 Hottest 123 | 60 60 70 123 Shots Fired 491 | 6 43 129 313 Gun 423 | 6 43 122 252 Cannon 47 | . . . 47 Launcher 21 | . . 7 14 Special . | . . . . Kinetic 446 | 3 23 122 298 Thermal 1 | . . . 1 Explosive 21 | . . 7 14 Electromagnetic 23 | 3 20 . . Robot Hit Streak 35 | 4 10 15 35 Robot Miss Streak 4 | 1 1 4 2 Penetration Max . | . . . . Secondary Targets 12 | . 2 4 6 Max Gunslinging Chain 1 | . 1 1 1 Shots Hit Robots 350 | 5 30 87 228 Core Hits 157 | 1 14 39 103 Critical Hits 3 | . 1 . 2 Critical Kills 3 | . 1 . 2 Critical Parts Destroyed . | . . . . Melee Attacks . | . . . . Impact . | . . . . Slashing . | . . . . Piercing . | . . . . Sneak Attacks . | . . . . Combat Hostiles . | . . . . Follow-up Attacks . | . . . . Damage Inflicted 5341 | 75 337 1090 3839 Guns 3512 | 63 331 795 2323 Cannons 711 | . . . 711 Explosions 1069 | . . 266 803 Melee . | . . . . Ramming 49 | 12 6 29 2 Kinetic 3996 | 36 151 795 3014 Thermal 20 | . . . 20 Explosive 1069 | . . 266 803 Electromagnetic 207 | 27 180 . . Impact . | . . . . Slashing . | . . . . Piercing . | . . . . Highest Corruption 2 | . . 2 2 Average Corruption 2 | . . 2 2 Corruption Purged . | . . . . Effects 22 | . . 5 17 Message Errors 9 | . . 2 7 Heat Flow Errors 4 | . . 1 3 Energy Discharges 2 | . . . 2 Data Loss (minor) 1 | . . 1 . Targeting Errors 5 | . . 1 4 Weapon Failures 1 | . . . 1 Overload Shots . | . . . . Overflow Damage 111 | . . 17 94 Projectiles 7 | . . . 7 Explosions 104 | . . 17 87 Melee . | . . . . Knockbacks 8 | . . . 8 Impact . | . . . . Kinetic 7 | . . . 7 Secondary 1 | . . . 1 Self-Inflicted Damage 143 | . 2 10 131 Shots 7 | . . 1 6 Rammed 13 | 3 2 5 3 Targets Rammed 14 | 3 2 6 3 Kicked . | . . . . Crushed 1 | . . 1 . Highest Temperature 368 | . 18 168 368 Average Temperature 86 | . 10 20 105 Received Heat Transfer 804 | . 42 102 660 Effects 6 | . . . 6 Energy Bleed 1 | . . . 1 Interference 4 | . . . 4 Matter Decay 1 | . . . 1 Siege Activations . | . . . . Robots Corrupted . | . . . . Combat Hostiles . | . . . . Parts Fried . | . . . . Impact Corruptions . | . . . . Robots Melted . | . . . . Combat Hostiles . | . . . . Parts Melted . | . . . . Heat Transferred 37 | . . . 37 Parts Sabotaged . | . . . . Parts Stolen . | . . . . Parts Stripped . | . . . . Power Chain Reactions . | . . . . Missiles Intercepted . | . . . . Alert | -11 -10 -9 -9 ------- Run | Scr Mat Mat Sto Peak Influence 581 | . 205 298 581 Initial 29 | . . 29 13 Average 192 | . 70 150 284 Maximum Alert Level 2 | . 1 1 2 Low Security (%) 51 | 100 99 58 22 Level 1 41 | . . 41 62 Level 2 7 | . . . 15 Level 3 . | . . . . Level 4 . | . . . . Level 5 . | . . . . High Security . | . . . . Max Security . | . . . . Squads Dispatched 18 | . 1 2 15 Investigation 3 | . 1 . 2 Extermination . | . . . . Reinforcement 4 | . . 2 2 Assault 2 | . . . 2 Garrison 9 | . . . 9 Intercept . | . . . . Construction Impeded 2 | . . 1 1 Haulers Reinforced . | . . . . Stealth | -11 -10 -9 -9 --------- Run | Scr Mat Mat Sto Distress Signals 8 | . . 5 3 Communications Jammed . | . . . . Distress Signals . | . . . . Times Spotted 82 | . 13 22 47 Peak Tracking Total 5 | . 3 4 5 Tactical Retreats 3 | . . 3 . Traps | -11 -10 -9 -9 ------- Run | Scr Mat Mat Sto Traps Triggered 4 | . . 1 3 Indirectly . | . . . . Trap Hack Attempts . | . . . . Triggered . | . . . . Disarmed 6 | . 6 . . Reprogrammed . | . . . . Reused . | . . . . Traps Extracted . | . . . . Installed . | . . . . Triggered . | . . . . Machines | -11 -10 -9 -9 ---------- Run | Scr Mat Mat Sto Machines Disabled 2 | . . 1 1 Max in Single Turn 1 | . . 1 1 Machines Sabotaged . | . . . . Garrisons Compromised . | . . . . Overloaded Fab Kills . | . . . . Fab Network Shutdowns . | . . . . Hacking | -11 -10 -9 -9 --------- Run | Scr Mat Mat Sto Machines Accessed 5 | . 1 . 4 Terminals 4 | . 1 . 3 Fabricators . | . . . . Repair Stations . | . . . . Recycling Units 1 | . . . 1 Scanalyzers . | . . . . Garrison Access . | . . . . Total Hacks 13 | . 1 . 12 Successful 8 | . 1 . 7 Failed 5 | . . . 5 Catastrophic . | . . . . Database Lockouts . | . . . . Manual . | . . . . Terminals 10 | . 1 . 9 Fabricators . | . . . . Repair Stations . | . . . . Recycling Units 3 | . . . 3 Scanalyzers . | . . . . Garrison Access . | . . . . Terminal Hacks 5 | . 1 . 4 Record 1 | . . . 1 Part Schematic 1 | . . . 1 Open Door 1 | . . . 1 Disarm Traps 1 | . 1 . . Investigation Status 1 | . . . 1 Fabricator Hacks . | . . . . Repair Station Hacks . | . . . . Recycling Unit Hacks 3 | . . . 3 Recycle Component 1 | . . . 1 Process 1 | . . . 1 Report Inventory 1 | . . . 1 Scanalyzer . | . . . . Garrison Access Hacks . | . . . . Unauthorized Hacks . | . . . . Terminals . | . . . . Fabricators . | . . . . Repair Stations . | . . . . Recycling Units . | . . . . Scanalyzers . | . . . . Garrison Access . | . . . . Data Cores Recovered . | . . . . Used . | . . . . Hacking Detections 2 | . . . 2 Full Trace Events 2 | . . . 2 Feedback Events . | . . . . Feedback Blocked . | . . . . Robot Schematics Acquired . | . . . . Robots Built . | . . . . Matter . | . . . . Time . | . . . . Total Robot Build Rating . | . . . . Part Schematics Acquired 1 | . . . 1 Parts Built . | . . . . Matter . | . . . . Time . | . . . . Total Part Build Rating . | . . . . Parts Repaired . | . . . . Time . | . . . . Parts Recycled 1 | . . . 1 Recycled Matter 138 | . . . 138 Retrieved Matter . | . . . . Retrieved Components . | . . . . Parts Scanalyzed . | . . . . Part Schematics Acquired . | . . . . Parts Damaged . | . . . . Bothacking | -11 -10 -9 -9 ------------ Run | Scr Mat Mat Sto Used RIF Installer . | . . . . Robots Hacked . | . . . . Non-combat . | . . . . Combat . | . . . . Robot Hacks Applied . | . . . . Relay Couplers Released . | . . . . Robots Rewired . | . . . . Allies Hacked . | . . . . Hacks Repelled . | . . . . Allies | -11 -10 -9 -9 -------- Run | Scr Mat Mat Sto Total Allies 2 | . . . 2 Largest Group 2 | . . . 2 Highest-Rated Group 62 | . . . 62 Highest-Rated Ally 31 | . . . 31 Total Orders . | . . . . Ally Attacks 13 | . . . 13 Total Damage 234 | . . . 234 Kills 3 | . . . 3 Allies Corrupted . | . . . . Allies Melted . | . . . . Intel | -11 -10 -9 -9 ------- Run | Scr Mat Mat Sto Robot Analysis Total . | . . . . Derelict Logs Recovered . | . . . . Drone Launches . | . . . . Drone Recoveries . | . . . . Exploration | -11 -10 -9 -9 ------------- Run | Scr Mat Mat Sto Turns Passed 3062 | 124 644 815 1479 Spaces Moved 1724 | 72 443 411 798 Core 12 | 12 . . . Treads 681 | 38 . 236 407 Legs 664 | . 443 175 46 Wheels 22 | 22 . . . Hover . | . . . . Flight 345 | . . . 345 Fastest Speed 29 | 50 120 120 29 Average Speed 121 | 120 120 148 108 Slowest Speed 192 | 160 120 170 192 Overloaded Moves . | . . . . Propulsion Burnouts . | . . . . Robots Hopped 8 | . . . 8 Cave-ins Triggered . | . . . . Exploration Rate (%) 32 | 5 52 24 49 Regions Visited 3 Branch Regions 1 Pre-discovered Areas . | . . . . Known Exits Taken . | . . . . Unknown Exits Taken 3 | 1 1 1 . Scrap Searched . | . . . . Spaces Dug . | . . . . Terrain Destroyed 150 | . . 44 106 Melee . | . . . . Projectile 17 | . . . 17 AOE 133 | . . 44 89 Terrain Rammed . | . . . . Walls Destroyed . | . . . . Machines Disabled . | . . . . Actions | -11 -10 -9 -9 --------- Run | Scr Mat Mat Sto Total 2302 | 102 515 518 1167 Wait 172 | . 23 17 132 Move 1705 | 71 442 410 782 Hop 8 | . . . 8 Pick Up 69 | 13 9 11 36 Fast Attach . | . . . . Attach 22 | 8 2 6 6 Detach 2 | 1 . . 1 Swap 33 | 2 4 11 16 Drop 50 | 1 10 7 32 Fire 191 | 3 23 50 115 Melee . | . . . . Ram . | . . . . Kick 3 | . 2 1 . Crush 11 | 3 . 5 3 Escape Stasis 36 | . . . 36 Rewire . | . . . . Trap . | . . . . Miscellaneous . | . . . . Route ------- -11/Scrapyard -10/Materials -9/Materials (discovered 2 exits: [*Min] / *Sto) -9/Storage History --------- Turn | Location | Event 18 | -11/Scrapyard | Discovered new exit (range 16) 125 | -11/Scrapyard | Entered Materials 302 | -10/Materials | Build established: Mutant 737 | -10/Materials | Discovered new exit (range 12) 769 | -10/Materials | Entered another Materials area 769 | -9/Materials | Evolved 2 slots: Propulsion x1, Weapon x1 1159 | -9/Materials | Discovered new exit (range 15) 1338 | -9/Materials | Discovered new exit (range 13) 1584 | -9/Materials | Entered Storage 1756 | -9/Storage | Garrison activated, responded to threat 1970 | -9/Storage | Build established: Tank 2114 | -9/Storage | Garrison activated, responded to threat 2540 | -9/Storage | Build established: Gunner 2869 | -9/Storage | Met a pair of Derelict thieves 2898 | -9/Storage | Build established: Sprinter 2920 | -9/Storage | Garrison activated, responded to threat 2958 | -9/Storage | Core integrity fell below 50% 2990 | -9/Storage | Destroyed 8 combat bots 2994 | -9/Storage | Lost 3 parts (2n1w) 3063 | -9/Storage | Self-destructed Last Messages --------------- 03043_ Acquired 27 matter. 03044_ U-05 Engineer lays Concrete. 03044_ K-01 Serf collects debris. 03045_ U-05 Engineer builds a Wall. 03047_ Acquired Aluminum Leg. 03047_ K-01 Serf collects debris. 03049_ U-05 Engineer lays Concrete. 03053_ K-01 Serf collects debris. 03053_ U-05 Engineer lays Concrete. 03054_ K-01 Serf collects debris. 03054_ U-05 Engineer lays Concrete. 03056_ K-01 Serf collects debris. 03057_ Dropped Aluminum Leg. 03057_ U-05 Engineer lays Concrete. 03057_ Dropped Aluminum Leg. 03058_ U-05 Engineer lays Concrete. 03058_ Acquired Beam Rifle. 03059_ U-05 Engineer lays Concrete. 03061_ K-01 Serf collects debris. 03062_ U-05 Engineer lays Concrete. Map ----- +----------------------------------------------------+ | ?# #???????? ??????????????????????????????????? | | ?# #???????" ??????????????????????????????????? | | ?# #???????" ??????????????????????????????????? | | ?# #??????"" #?????????????????????????????????? | | ?# +??????" #?????????????????????????????????? | | ?# #??????" #?????????????????????????????????? | | ?# #??????" #?????????????????????????????????? | | ?# #??????? #?????###########?????????????????? | | ## ##??????#+#?????# #?????????????????? | | # ######## #######[ #?????????????????? | | # !!! += #?????????????????? | | # %######! #?????????????????? | | # ==#????# #?????????????????? | | # #######=[ #????# = #?????????????????? | | #############% =##???# [ #?????????????????? | | ???????#T###"*=%###### =% #?????????????????? | | ???????" ###!%!### # # +######????????????????? | | ???????# ##!===!%* [ [k% #????????????????? | | ??????## *##[!!===!= * #????????????????? | | ?????###+###=[%!==%* !*% ##???????????????? | | ?????# ^!*%=%**########+# %# #???????????????? | | ?#####*%*=%%==[# % = ]** ###?????????????? | | ?# +=[ %"""!!# u =! ##????????????? | | ?###T# %[*!G" %# "" [ ! # # #????????????? | | ???### ==%""" # " = ![ k = ##????????????? | | ?????#^ =^=% # "" !@= = ###?##??????????? | | ????## %*% # ! =!*## ######?????? | | ????#T % ########## # #=%; #?????? | | ????## %####! % *!+ """"" ???????? | | ?????# % % % ###=%= ! # """"" ???????? | | ?????# ##+###+#####! # """""????????? | | ?????# ##! # #### # ????????? | | ?????# ## """" # !! = #??# # """"" ???????? | | ?????# ## "???" # ! #??# # """"" ???????? | | ?????# ## "????" # = =#??# # """""????????? | | ?????# ## "????? # *r #??# # ?????????? | | ?###?# ## ??????######+####?## ##"T???????????? | | ##T### ## ?????????# ##### #"????????????? | | %+ ## ????????# ##????????????? | | !!# "#######??????# #?????????????? | | ![#%# #??????# ##### #?????????????? | | !!= + + """ #?####### ##???######?????????????? | | *]!= # # """ ### # #???????????????????????? | | !!== # # """ #"" """ # #???????????????????????? | | ]== !# # #"Y """ # #????####???????????????? | | #=#### #] #"" """ # ####?! !#???????????????? | | # ########## # ##T# !! #???????????????? | | + # # " #???????????????? | | # ########## = # / !#???????????????? | | ## #????????# # # " ! #???????????????? | +----------------------------------------------------+ Best States ------------- Heat Dissipation 38 Energy Generation 12 Energy Capacity 465 Matter Stores 300 Matter Capacity 300 Sight Range 16 Terrain Scan Density 10 Additional Mass Support 6 Resistance: KI 20 Resistance: TH 20 Resistance: EX 20 Resistance: EM 20 Resistance: I 20 Resistance: S 20 Resistance: P 20 Core Shielding 20 Evasion (%) 64 Recoil Reduction 3 Offensive Hacking 10 Item Schematics ----------------- Airjet | -9/Storage | Hacked Robot Schematics ------------------ None Fabricated ------------ Nothing Alien Tech Used ----------------- None Achievements -------------- Hey, That's Mine! Challenges ------------ None Game ------ Seed AbsorptionThunderExoskeleton Manual? 0 Play Time 01:01:51 Cumulative 3.4 hours Start 2021.02.11 @ 11:16:40 End 2021.02.11 @ 18:25:04 Sessions 1 Manual Loads 0 Difficulty Adventurer Special Mode None Game No. 3 Rogue 0 Adventurer 3 Explorer 0 Win Type - Total 0 Types 0/0/0/0/0/0/0/0/0 Lore% 0 Gallery% 6 Achievement% 6 Wizard Run 0 Options --------- ASCII 0 Keyboard 1 Movement Arrows Keybinds 0 Fullscreen 1 Font 18/Smallcaps Map View 76x50 Tactical HUD 1 Map Filters NONE Filters NONE Steam 1 RUN: 270e48f0-d62c-42ab-890f-69396cee0d3a